bitfinex/quotes_ETHUSD_20250905
["timestamp","ask_amount","ask_price","bid_price","bid_amount"]
[1757105382656,0.7937,4341.8,4341.7,7.52501051]
[1757105383592,0.7937,4341.8,4341.7,5.22176524]
[1757105383767,0.7937,4341.8,4341.7,6.96391237]
[1757105384968,0.7937,4341.8,4341.7,9.26715764]
[1757105386069,0.7937,4341.8,4341.7,6.96391237]
[1757105386270,1.2819,4341.8,4341.7,6.96391237]
[1757105387363,1.2819,4341.8,4341.7,9.26715764]
[1757105387563,0.7937,4341.8,4341.7,9.26715764]
[1757105387882,0.7937,4341.8,4341.7,6.96391237]
[1757105388516,0.7937,4341.8,4341.7,9.26715764]
[1757105389155,0.7937,4341.8,4341.7,6.96391237]
[1757105389613,0.7937,4341.8,4341.7,9.26715764]
[1757105390257,0.7937,4341.8,4341.7,6.96391237]
[1757105390592,0.7937,4341.8,4341.7,9.26715764]
[1757105390969,0.4775,4341.8,4341.7,9.26715764]
[1757105391270,0.026,4341.8,4341.7,9.05217173]
[1757105391481,0.026,4341.8,4341.7,15.49627706]
[1757105391788,0.026,4341.8,4341.7,15.80667706]
[1757105391962,0.026,4341.8,4341.7,15.49627706]
[1757105393363,0.026,4341.8,4341.7,15.80667706]
[1757105393685,0.026,4341.8,4341.7,15.49627706]
[1757105395111,0.026,4341.8,4341.7,22.74418239]
[1757105395259,0.026,4341.8,4341.7,16.30007706]
[1757105395459,0.026,4341.8,4341.7,20.15307706]
[1757105397073,0.026,4341.8,4341.7,25.28278239]
[1757105397378,0.026,4341.8,4341.7,25.62698239]
[1757105397992,0.026,4341.8,4341.7,18.03487706]
[1757105398689,0.026,4341.8,4341.7,18.83867706]
[1757105399587,0.026,4341.8,4341.7,25.28278239]
[1757105399791,0.026,4341.8,4341.7,18.83867706]
[1757105400573,0.026,4341.8,4341.7,18.34527706]
[1757105400787,0.026,4341.8,4341.7,18.03487706]
[1757105401170,0.026,4341.8,4341.7,18.83867706]
[1757105401373,0.026,4341.8,4341.7,25.28278239]
[1757105401566,0.001,4342.0,4341.9,2.30313917]
[1757105401790,0.001,4342.0,4341.9,11.44707853]
[1757105401985,0.001,4342.0,4341.9,12.57204714]
[1757105402205,0.001,4342.0,4341.9,16.77204714]
[1757105403079,0.001,4342.0,4341.9,16.42784714]
[1757105405379,0.001,4342.0,4341.9,15.62404714]
[1757105405582,0.3146,4342.0,4341.9,16.05994714]
[1757105405780,0.7505,4342.0,4341.9,22.50405247]
[1757105406512,1.2387,4342.0,4341.9,14.45205247]
[1757105406676,1.2387,4342.0,4341.9,2.70480797]
[1757105407072,1.2387,4342.0,4341.9,7.01920797]
[1757105407273,1.2387,4342.0,4341.9,4.7513]
[1757105408071,1.2387,4342.0,4341.9,7.05443917]
[1757105408590,0.7505,4342.0,4341.9,13.4985445]
[1757105408998,0.001,4342.0,4341.9,23.74644983]
[1757105409181,0.001,4342.0,4341.9,24.09064983]
[1757105409381,0.001,4342.0,4341.9,26.0143578]
[1757105409605,0.001,4342.0,4341.9,19.57025247]
[1757105410176,0.001,4342.0,4341.9,26.0143578]
[1757105411778,0.001,4342.0,4341.9,25.95677667]
[1757105412209,0.001,4342.0,4341.9,19.51267134]
[1757105413708,0.001,4342.0,4341.9,19.01927134]
[1757105414215,0.001,4342.0,4341.9,19.48047134]
[1757105415511,0.001,4342.0,4341.9,19.01927134]
[1757105415913,0.001,4342.0,4341.9,19.48047134]
[1757105416506,0.001,4342.0,4341.9,25.92457667]
[1757105421888,0.001,4342.5,4342.4,6.09487398]
[1757105422108,0.001,4342.5,4342.4,10.25227398]
[1757105422307,0.001,4343.4,4342.9,2.30260885]
[1757105422508,0.001,4343.4,4343.3,11.74650212]
[1757105422716,0.001,4343.4,4343.3,15.71290212]
[1757105422919,0.2894,4343.4,4343.3,17.51443814]
[1757105423150,0.7263,4343.4,4343.3,17.51443814]
[1757105423294,1.2054,4343.4,4343.3,17.51443814]
[1757105424149,0.001,4343.4,4343.3,24.26394347]
[1757105424432,0.001,4343.4,4343.3,17.50903311]
[1757105424922,0.7263,4343.4,4343.3,17.50803311]
[1757105427314,0.7263,4343.4,4343.3,23.94673341]
[1757105428517,0.7263,4343.4,4343.3,17.50803311]
[1757105429612,0.7263,4343.4,4343.3,23.94673341]
[1757105430822,0.7263,4343.4,4343.3,24.17743341]
[1757105431011,0.7263,4343.4,4343.3,23.94673341]
[1757105431200,0.4379,4343.4,4343.3,23.94673341]
[1757105431722,0.7263,4343.4,4343.3,23.94673341]
[1757105432395,0.001,4343.4,4343.3,23.94673341]
[1757105433802,0.4379,4343.4,4343.3,23.94673341]
[1757105434501,0.7263,4343.4,4343.3,23.94673341]
[1757105434702,0.4379,4343.4,4343.3,23.94673341]
[1757105435423,0.001,4343.4,4343.3,24.71333341]
[1757105435949,0.001,4343.4,4343.3,23.94673341]
[1757105436433,0.7263,4343.4,4343.3,23.94673341]
[1757105436731,0.001,4343.4,4343.3,23.94673341]
[1757105437117,0.2894,4343.4,4343.3,23.94673341]
[1757105437637,0.001,4343.4,4343.3,23.94673341]
[1757105438808,0.001,4343.4,4343.3,28.14673341]
[1757105439437,0.4539,4343.4,4343.3,28.14673341]
[1757105441042,0.4539,4343.4,4343.3,28.37743341]
[1757105441350,0.001,4343.4,4343.3,28.14673341]
[1757105441846,0.001,4343.4,4343.3,28.90723341]
[1757105442043,0.026,4343.8,4343.7,2.30218477]
[1757105442206,0.026,4343.8,4343.7,20.57435977]
[1757105442409,0.026,4343.8,4343.7,21.42623793]
[1757105442649,0.026,4343.8,4343.7,21.88013793]
[1757105443440,0.026,4343.8,4343.7,21.11963793]
[1757105444113,0.4789,4343.8,4343.7,21.11963793]
[1757105444340,0.767,4343.8,4343.7,21.11963793]
[1757105444514,0.767,4343.8,4343.7,16.91963793]
[1757105444937,0.767,4343.8,4343.7,21.11963793]
[1757105445550,0.767,4343.8,4343.7,16.91963793]
[1757105446334,0.767,4343.8,4343.7,21.11963793]
[1757105446669,0.767,4343.8,4343.7,16.91963793]
[1757105449745,0.4789,4343.8,4343.7,16.91963793]
[1757105449951,0.026,4343.8,4343.7,16.91963793]
[1757105450450,0.767,4343.8,4343.7,16.91963793]
[1757105450757,0.767,4343.8,4343.7,21.11963793]
[1757105451538,0.767,4343.8,4343.7,22.25693357]
[1757105451739,0.767,4343.8,4343.7,19.25693357]
[1757105451939,0.026,4343.8,4343.7,23.01743357]
[1757105452763,0.026,4343.8,4343.7,22.25693357]
[1757105455148,0.026,4343.8,4343.7,19.25693357]
[1757105455345,0.767,4343.8,4343.7,22.25693357]
[1757105455676,0.026,4343.8,4343.7,22.25693357]
[1757105456173,0.026,4343.8,4343.7,22.55963357]
[1757105456379,0.026,4343.8,4343.7,23.01743357]
[1757105460550,0.001,4344.3,4344.1,2.30197279]
[1757105460752,0.001,4344.3,4344.2,21.66181302]
[1757105461150,0.2891,4344.3,4344.2,22.12261302]
[1757105461381,0.742,4344.3,4344.2,22.12261302]
[1757105462381,1.2018,4344.3,4344.2,22.12261302]
[1757105463586,0.742,4344.3,4344.2,22.12261302]
[1757105463784,0.2891,4344.3,4344.2,22.12261302]
[1757105464082,0.001,4344.3,4344.2,22.12261302]
[1757105464465,0.742,4344.3,4344.2,22.12261302]
[1757105465753,0.001,4344.3,4344.2,22.12261302]
[1757105466686,0.742,4344.3,4344.2,14.54661708]
[1757105468052,1.2018,4344.3,4344.2,14.54561708]
[1757105468268,1.2018,4344.3,4344.2,13.8981198]
[1757105468469,1.2018,4344.3,4344.2,4.4232]
[1757105468856,1.2018,4344.3,4344.2,0.5752]
[1757105469254,3.50366681,4344.3,4344.2,0.4608]
[1757105469490,3.87442517,4344.3,4343.5,3.848]
[1757105469687,0.9094,4344.2,4343.6,2.30220176]
[1757105470000,2.59097524,4344.3,4343.6,2.30220176]
[1757105470001,0.288,4343.7,4343.6,6.15020176]
[1757105470174,0.288,4343.7,4343.6,2.30220176]
[1757105470383,0.7232,4343.7,4343.6,2.30220176]
[1757105470578,1.1974,4343.7,4343.5,4.54008064]
[1757105470883,0.9094,4343.6,4343.5,6.84237141]
[1757105471079,0.7232,4343.6,4343.5,6.84237141]
[1757105472502,0.4362,4344.3,4343.5,5.76945248]
[1757105472795,0.4362,4344.3,4343.5,6.84633271]
[1757105472796,0.288,4343.6,4343.5,6.84633271]
[1757105473168,1.1974,4343.6,4343.5,6.84633271]
[1757105473392,0.7232,4343.6,4343.5,6.84633271]
[1757105476414,0.001,4343.9,4343.5,4.85858064]
[1757105476710,0.001,4343.9,4343.6,3.83552237]
[1757105476908,0.001,4343.9,4343.7,8.00742593]
[1757105477110,0.001,4343.9,4343.8,2.63965308]
[1757105477300,0.001,4343.9,4343.8,2.61663177]
[1757105477503,0.001,4343.9,4343.8,3.10795308]
[1757105478982,0.001,4343.9,4343.8,3.08493177]
[1757105479309,0.7242,4343.9,4343.8,4.59299292]
[1757105480913,0.001,4343.9,4343.8,5.37579292]
[1757105483305,0.001,4343.9,4343.8,9.54879292]
[1757105484807,0.001,4343.9,4343.8,13.39679292]
[1757105485012,0.001,4343.9,4343.8,12.92849292]
[1757105485235,0.001,4343.9,4343.8,12.61399292]
[1757105485934,0.001,4343.9,4343.8,9.08049292]
[1757105486231,0.001,4343.9,4343.8,13.39679292]
[1757105487216,0.001,4343.9,4343.8,12.92849292]
[1757105487936,0.001,4343.9,4343.8,12.61399292]
[1757105488138,0.001,4343.9,4343.8,12.92849292]
[1757105489243,0.7242,4343.9,4343.8,12.61399292]
[1757105491409,1.1984,4343.9,4343.8,12.61399292]
[1757105491621,1.1984,4343.9,4343.8,6.58953177]
[1757105491841,1.1984,4343.9,4343.8,8.1354]
[1757105492044,1.1984,4343.9,4343.8,6.58953177]
[1757105495950,0.001,4343.9,4343.8,6.58953177]
[1757105496456,0.289,4343.9,4343.8,6.58953177]
[1757105496751,0.7242,4343.9,4343.8,7.37768719]
[1757105498813,0.4362,4343.9,4343.8,7.37768719]
[1757105499013,0.7242,4343.9,4343.8,7.37768719]
[1757105501346,1.1893,4343.9,4343.8,7.37768719]
[1757105502521,1.1893,4343.9,4343.8,6.58953177]
[1757105502719,1.1893,4343.9,4343.7,4.26525784]
[1757105502955,0.9358,4343.8,4343.7,4.173]
[1757105503249,1.2252,4343.8,4343.7,4.173]
[1757105507544,3.52733177,4343.8,4343.7,4.173]
[1757105507760,4.11036753,4343.8,4343.7,4.173]
[1757105513126,2.30218477,4343.7,4343.6,0.004]
[1757105513325,6.61428477,4343.7,4343.6,0.004]
[1757105513561,7.37438477,4343.7,4343.6,0.004]
[1757105513749,5.0722,4343.7,4343.6,0.004]
[1757105513953,7.37438477,4343.7,4343.6,0.004]
[1757105515153,6.90928477,4343.7,4343.6,0.004]
[1757105516649,7.37438477,4343.7,4343.6,0.004]
[1757105517132,7.84600184,4343.7,4343.6,0.004]
[1757105520370,6.91020184,4343.7,4343.6,0.004]
[1757105520571,4.6071,4343.7,4343.6,0.004]
[1757105520760,6.90928477,4343.7,4343.6,0.004]
[1757105521069,1.2252,4343.7,4343.6,0.004]
[1757105521257,7.37438477,4343.7,4343.6,0.004]
[1757105522271,4.6071,4343.7,4343.6,0.004]
[1757105522683,6.90928477,4343.7,4343.6,0.004]
[1757105523474,3.06228477,4343.7,4343.6,0.004]
[1757105523876,6.90928477,4343.7,4343.6,0.004]
[1757105524776,3.06228477,4343.7,4343.6,0.004]
[1757105524973,6.90928477,4343.7,4343.6,0.004]
[1757105526205,7.37438477,4343.7,4343.6,0.004]
[1757105528053,7.37338477,4343.7,4343.6,0.004]
[1757105531851,2.30223777,4343.6,4343.5,0.004]
[1757105532056,2.75623777,4343.6,4343.5,0.004]
[1757105532397,3.51223777,4343.6,4343.5,0.004]
[1757105534690,2.30223777,4343.6,4343.5,0.004]
[1757105534890,3.846,4343.6,4343.5,0.7902]
[1757105535062,0.001,4343.9,4343.8,2.30213177]
[1757105535259,0.001,4343.9,4343.8,8.74321689]
[1757105535472,0.001,4343.9,4343.8,9.98801689]
[1757105535661,0.001,4343.9,4343.8,12.98801689]
[1757105535873,0.001,4344.4,4344.2,2.3019198]
[1757105536071,0.001,4344.4,4344.2,12.52641437]
[1757105536378,0.001,4344.4,4344.2,13.74719518]
[1757105541061,0.001,4344.4,4344.2,13.95104673]
[1757105544070,0.001,4344.4,4344.2,17.79604673]
[1757105544487,0.001,4344.4,4344.2,21.96904673]
[1757105545513,0.001,4344.4,4344.2,21.62584673]
[1757105551318,0.001,4344.4,4344.2,21.14734673]
[1757105551515,0.001,4344.4,4344.2,20.83964673]
[1757105552523,0.001,4344.4,4344.2,21.14734673]
[1757105552710,0.001,4344.4,4344.2,21.62584673]
[1757105555501,0.001,4344.4,4344.2,29.08773185]
[1757105555693,0.001,4344.4,4344.2,15.97676161]
[1757105556002,0.001,4344.4,4344.2,22.76104673]
[1757105556595,0.001,4344.4,4344.2,22.41784673]
[1757105558831,0.001,4344.4,4344.2,21.62584673]
[1757105563434,0.001,4344.4,4344.2,21.14734673]
[1757105563934,0.001,4344.4,4344.2,20.83964673]
[1757105565235,0.001,4344.4,4344.2,21.62004673]
[1757105565841,0.001,4344.4,4344.2,20.83964673]
[1757105568736,0.001,4344.4,4344.2,20.07725647]
[1757105568737,0.7457,4344.3,4344.2,20.07725647]
[1757105568911,1.235,4344.3,4344.2,20.07725647]
[1757105569111,1.235,4344.3,4344.2,16.23425647]
[1757105569314,1.235,4344.3,4344.2,20.07725647]
[1757105569511,0.7457,4344.3,4344.2,20.07725647]
[1757105573641,0.001,4344.3,4344.2,20.37385647]
[1757105573823,0.001,4344.3,4344.2,22.64176444]
[1757105574219,0.001,4344.3,4344.2,23.12556444]
[1757105575324,0.20385155,4344.6,4344.5,2.30176084]
[1757105575642,0.20385155,4344.6,4344.5,9.14476084]
[1757105575851,0.20385155,4344.6,4344.5,9.25916084]
[1757105576011,0.20385155,4344.6,4344.5,11.52706881]
[1757105576413,0.20385155,4344.6,4344.5,11.73092036]
[1757105577344,0.94855155,4344.6,4344.5,11.73092036]
[1757105577850,0.20385155,4344.6,4344.5,11.73092036]
[1757105579626,0.94855155,4344.6,4344.5,11.73092036]
[1757105580355,0.20385155,4344.6,4344.5,11.73092036]
[1757105581261,0.20385155,4344.6,4344.5,15.90192036]
[1757105581554,0.20485155,4344.6,4344.5,15.90192036]
[1757105582447,0.65065155,4344.6,4344.5,15.90192036]
[1757105582825,0.20485155,4344.6,4344.5,15.90192036]
[1757105583935,0.94955155,4344.6,4344.5,15.90192036]
[1757105584752,0.20485155,4344.6,4344.5,15.90192036]
[1757105587827,0.65065155,4344.6,4344.5,15.90192036]
[1757105588951,0.20485155,4344.6,4344.5,16.19852036]
[1757105589127,0.20485155,4344.6,4344.5,16.68232036]
[1757105589518,0.20485155,4344.6,4344.5,15.90192036]
[1757105590017,0.97575155,4344.6,4344.5,15.90192036]
[1757105592145,0.20485155,4344.6,4344.5,15.90192036]
[1757105594932,0.20485155,4344.6,4344.5,16.64992036]
[1757105596158,0.20485155,4344.6,4344.5,15.90192036]
[1757105599057,0.5007,4344.8,4344.7,6.26680333]
[1757105599252,0.026,4344.8,4344.7,15.3757113]
[1757105599448,0.3222,4344.8,4344.7,15.3757113]
[1757105599646,0.3222,4344.8,4344.7,16.06750467]
[1757105599848,0.7969,4344.8,4344.7,16.06750467]
[1757105604062,0.026,4344.8,4344.7,16.06750467]
[1757105604438,0.7969,4344.8,4344.7,16.06750467]
[1757105609038,0.026,4344.8,4344.7,16.06750467]
[1757105609438,0.5007,4344.8,4344.7,16.06750467]
[1757105610069,0.3222,4344.8,4344.7,16.06750467]
[1757105610243,0.7969,4344.8,4344.7,16.06750467]
[1757105610435,1.2524,4344.8,4344.7,16.06750467]
[1757105610641,1.2524,4344.8,4344.7,13.7995967]
[1757105610842,1.2524,4344.8,4344.7,9.9585967]
[1757105611040,1.2524,4344.8,4344.7,13.7995967]
[1757105612578,0.7969,4344.8,4344.7,13.7995967]
[1757105613975,0.7969,4344.8,4344.7,13.7985967]
[1757105614274,0.026,4344.8,4344.7,16.39485795]
[1757105615179,0.026,4344.8,4344.7,15.64685795]
[1757105617584,0.026,4344.8,4344.7,15.93555795]
[1757105618084,0.026,4344.8,4344.7,15.64685795]
[1757105619883,0.026,4344.8,4344.7,16.42625795]
[1757105620273,0.026,4344.8,4344.7,15.93975795]
[1757105620574,0.026,4344.8,4344.7,15.64685795]
[1757105624082,0.026,4344.8,4344.7,15.93975795]
[1757105624286,0.026,4344.8,4344.7,16.42625795]
[1757105624586,0.026,4344.8,4344.7,15.93975795]
[1757105624879,0.026,4344.8,4344.7,15.64685795]
[1757105631290,0.7581,4344.8,4344.7,15.64685795]
[1757105631492,1.2129,4344.8,4344.7,15.64685795]
[1757105631797,0.7581,4344.8,4344.7,15.64685795]
[1757105636974,0.3165,4344.8,4344.7,15.64685795]
[1757105637286,0.7581,4344.8,4344.7,15.64685795]
[1757105637605,1.2129,4344.8,4344.7,20.23370878]
[1757105638212,0.7581,4344.8,4344.7,20.23370878]
[1757105641406,0.4676,4344.8,4344.7,20.23370878]
[1757105643620,0.026,4344.8,4344.7,21.12750878]
[1757105643916,0.026,4344.8,4344.7,20.64100878]
[1757105644075,0.026,4344.8,4344.7,22.90891675]
[1757105646323,0.026,4344.8,4344.7,22.61401675]
[1757105648725,0.026,4344.8,4344.7,22.90691675]
[1757105648931,0.026,4344.8,4344.7,23.39341675]
[1757105649534,0.001,4344.8,4344.7,23.39341675]
[1757105649726,1.0,4345.0,4344.9,2.30154894]
[1757105650033,1.4663,4345.0,4344.9,6.13954894]
[1757105650233,1.4663,4345.0,4344.9,6.77242932]
[1757105650435,1.4663,4345.0,4344.9,7.46420993]
[1757105651235,1.7762,4345.0,4344.9,7.46420993]
[1757105651803,1.7762,4345.0,4344.9,7.40666856]
[1757105652635,1.7772,4345.0,4344.9,13.84178064]
[1757105653437,1.001,4345.0,4344.9,14.15408064]
[1757105653605,1.001,4345.0,4344.9,21.68952909]
[1757105654015,1.001,4345.0,4344.9,14.94211701]
[1757105654303,1.001,4345.0,4344.9,20.89532909]
[1757105654502,1.4673,4345.0,4344.9,20.89532909]
[1757105655837,1.001,4345.0,4344.9,21.20762909]
[1757105656036,1.001,4345.0,4344.9,22.82472909]
[1757105656242,0.001,4345.1,4345.0,8.23964442]
[1757105656406,0.001,4345.1,4345.0,18.50265239]
[1757105656602,0.001,4345.1,4345.0,18.81495239]
[1757105657806,0.001,4345.1,4345.0,18.47175239]
[1757105658619,0.001,4345.1,4345.0,18.56397896]
[1757105661420,0.7817,4345.1,4345.0,10.20037502]
[1757105661626,1.248,4345.1,4345.0,12.50187099]
[1757105662447,0.7772,4345.1,4345.0,12.50187099]
[1757105665347,1.248,4345.1,4345.0,10.20037502]
[1757105666213,1.248,4345.1,4345.0,12.50187099]
[1757105666647,3.674443,4345.1,4345.0,10.20037502]
[1757105666947,3.674443,4345.1,4345.0,10.10814845]
[1757105667118,2.30160069,4344.9,4344.6,0.69594017]
[1757105667443,2.30163328,4344.8,4344.6,0.004]
[1757105667644,0.3099,4344.7,4344.6,0.004]
[1757105667836,1.247,4344.7,4344.6,0.004]
[1757105668440,3.90350448,4344.7,4344.6,0.004]
[1757105668814,1.6018496,4344.7,4344.6,0.004]
[1757105669015,3.90350448,4344.7,4344.6,0.004]
[1757105669451,0.001,4345.1,4344.6,13.35612416]
[1757105669764,0.001,4345.1,4344.7,6.91701208]
[1757105669964,0.4708,4345.0,4344.6,3.841]
[1757105670116,0.3099,4344.7,4344.6,6.14270786]
[1757105670316,0.7762,4344.7,4344.6,6.14270786]
[1757105670529,0.7762,4344.7,4344.6,6.25710786]
[1757105670965,1.247,4344.7,4344.6,6.25710786]
[1757105671840,1.247,4344.7,4344.6,0.1184]
[1757105672160,1.247,4344.7,4344.6,2.42010786]
[1757105672950,2.30247546,4345.1,4344.6,0.1184]
[1757105673152,0.3099,4344.7,4344.6,2.42010786]
[1757105673356,0.7762,4344.7,4344.6,2.42010786]
[1757105676181,0.7762,4344.7,4344.6,2.42010786]
[1757105676881,0.7762,4344.7,4344.6,3.11202727]
[1757105677768,3.54865488,4344.7,4344.6,0.81031941]
[1757105677944,1.83202488,4344.7,4344.6,0.004]
[1757105678362,1.247,4344.7,4344.6,0.004]
[1757105682275,1.247,4344.7,4344.6,2.94214845]
[1757105683246,0.7762,4344.7,4344.6,2.94214845]
[1757105684081,3.837,4344.7,4344.6,2.94214845]
[1757105684285,3.837,4344.7,4344.6,3.74847904]
[1757105684578,0.001,4345.1,4345.0,2.30149597]
[1757105684778,0.001,4345.1,4345.0,2.41589597]
[1757105684960,0.001,4345.1,4345.0,2.71149597]
[1757105685279,0.001,4345.1,4345.0,2.80373828]
[1757105686282,0.001,4345.1,4345.0,2.50813828]
[1757105687759,0.001,4345.1,4345.0,3.03592781]
[1757105687976,0.001,4345.1,4345.0,3.33152781]
[1757105688273,0.001,4345.1,4345.0,6.73787626]
[1757105688679,0.001,4345.1,4345.0,6.26967626]
[1757105689455,0.2932,4345.1,4345.0,5.97407626]
[1757105689769,0.7419,4345.1,4345.0,3.14479076]
[1757105690472,0.7419,4345.1,4345.0,5.44628673]
[1757105692786,0.7419,4345.1,4345.0,3.14479076]
[1757105692985,1.2062,4345.1,4345.0,3.14479076]
[1757105693191,0.7419,4345.1,4345.0,3.14479076]
[1757105693361,0.7419,4345.1,4345.0,5.44628673]
[1757105693557,0.7419,4345.1,4345.0,3.14479076]
[1757105693887,0.7419,4345.1,4345.0,5.44628673]
[1757105696256,1.2062,4345.1,4345.0,3.14479076]
[1757105696558,1.66419,4345.1,4345.0,3.03039076]
[1757105696775,0.7419,4345.1,4345.0,3.03039076]
[1757105696980,0.2932,4345.1,4345.0,3.03039076]
[1757105697779,0.001,4345.1,4345.0,5.74188673]
[1757105697981,0.001,4345.1,4345.0,6.21008673]
[1757105699591,0.001,4345.1,4345.0,10.04608673]
[1757105699790,0.001,4345.1,4345.0,12.03819565]
[1757105701095,0.001,4345.1,4345.0,12.26699565]
[1757105701298,0.001,4345.1,4345.0,12.38139565]
[1757105701594,0.001,4345.1,4345.0,8.20219565]
[1757105701845,0.001,4345.1,4345.0,12.03819565]
[1757105703366,0.001,4345.1,4345.0,8.20219565]
[1757105703569,0.001,4345.1,4345.0,12.03819565]
[1757105706104,0.001,4345.3,4345.2,5.23753848]
[1757105706402,0.001,4345.3,4345.2,10.99314745]
[1757105706598,0.001,4345.3,4345.2,11.28874745]
[1757105707505,0.001,4345.3,4345.2,11.38097593]
[1757105712221,0.001,4345.3,4345.2,11.86897593]
[1757105714196,0.001,4345.3,4345.2,11.38097593]
[1757105714629,0.7911,4345.3,4345.2,11.08537593]
[1757105715133,1.2706,4345.3,4345.2,0.09222848]
[1757105716338,1.2706,4345.3,4345.2,2.39361851]
[1757105716834,1.2706,4345.3,4345.2,0.09222848]
[1757105717211,1.2706,4345.3,4345.2,2.39361851]
[1757105717408,1.2706,4345.3,4345.2,0.09222848]
[1757105717613,1.627979,4345.3,4345.1,2.93614845]
[1757105717832,0.674079,4345.3,4345.1,2.93614845]
[1757105718030,0.9539,4345.2,4345.1,2.93614845]
[1757105718236,1.2696,4345.2,4345.1,2.93614845]
[1757105721434,0.7901,4345.2,4345.1,5.23759145]
[1757105722031,0.001,4345.3,4345.2,2.30139003]
[1757105722226,0.001,4345.3,4345.2,2.61719003]
[1757105722632,0.001,4345.3,4345.2,2.30139003]
[1757105722834,0.7911,4345.3,4345.2,2.30139003]
[1757105723012,0.001,4345.3,4345.2,2.99321052]
[1757105725141,0.7911,4345.3,4345.2,0.69182049]
[1757105725322,0.7911,4345.3,4345.2,2.99321052]
[1757105726627,0.7911,4345.3,4345.2,5.92935897]
[1757105729047,1.2706,4345.3,4345.2,5.92935897]
[1757105729847,0.7911,4345.3,4345.2,5.92935897]
[1757105732348,0.001,4345.3,4345.2,5.92935897]
[1757105734851,0.7911,4345.3,4345.2,3.62796894]
[1757105735146,0.7911,4345.3,4345.2,2.93614845]
[1757105735147,1.2706,4345.3,4345.2,2.93614845]
[1757105735320,0.001,4345.3,4345.2,5.23753848]
[1757105735722,0.7911,4345.3,4345.2,5.23753848]
[1757105740367,0.001,4345.3,4345.2,5.23753848]
[1757105741560,0.7513,4345.3,4345.2,5.23753848]
[1757105741765,0.7513,4345.3,4345.2,2.93614845]
[1757105741967,0.7513,4345.3,4345.2,5.23753848]
[1757105742326,0.7513,4345.3,4345.2,2.93614845]
[1757105742556,0.7513,4345.3,4345.2,5.23753848]
[1757105743727,0.001,4345.3,4345.2,5.23753848]
[1757105744658,0.001,4345.3,4345.2,5.52753848]
[1757105744837,0.001,4345.3,4345.2,6.01703848]
[1757105745343,0.001,4345.3,4345.2,7.93634388]
[1757105746266,0.001,4345.3,4345.2,6.21935099]
[1757105746845,0.001,4345.3,4345.2,5.92935099]
[1757105748796,0.7513,4345.3,4345.2,3.62796096]
[1757105748947,1.2103,4345.3,4345.2,3.62796096]
[1757105750079,1.2103,4345.3,4345.2,2.93614845]
[1757105751844,4.02770707,4345.3,4345.1,0.004]
[1757105752092,7.78939003,4345.2,4345.1,0.004]
[1757105752677,8.99869003,4345.2,4345.1,0.004]
[1757105753952,12.83269003,4345.2,4345.1,0.004]
[1757105759347,7.74769003,4345.2,4345.1,0.004]
[1757105759674,11.69609003,4345.2,4345.1,0.004]
[1757105761148,7.86209003,4345.2,4345.1,0.004]
[1757105761349,11.38679003,4345.2,4345.1,0.004]
[1757105761552,10.94579003,4345.2,4345.1,0.004]
[1757105762578,7.11179003,4345.2,4345.1,0.004]
[1757105762878,5.53,4345.2,4345.1,0.7835]
[1757105764578,1.696,4345.2,4345.1,0.7835]
[1757105764763,1.696,4345.2,4345.1,1.15279381]
[1757105764963,5.53,4345.2,4345.1,0.7835]
[1757105766087,7.83139003,4345.2,4345.1,0.294]
[1757105766759,8.27239003,4345.2,4345.1,0.004]
[1757105767083,7.83139003,4345.2,4345.1,0.004]
[1757105767596,9.04069003,4345.2,4345.1,0.004]
[1757105768786,8.58169003,4345.2,4345.1,0.004]
[1757105769456,1.696,4345.2,4345.1,0.2971]
[1757105769783,5.53,4345.2,4345.1,0.7953]
[1757105770510,1.696,4345.2,4345.1,0.7953]
[1757105770781,5.53,4345.2,4345.1,4.01532848]
[1757105771551,5.53,4345.2,4345.1,1.71388548]
[1757105771897,5.53,4345.2,4345.1,0.85215863]
[1757105775489,0.001,4345.3,4345.2,2.30139003]
[1757105775697,0.001,4345.3,4345.2,9.23586848]
[1757105775993,0.001,4345.3,4345.2,9.52896848]
[1757105778163,0.001,4345.3,4345.2,10.22076345]
[1757105778370,0.001,4345.3,4345.2,11.51379855]
[1757105780079,0.001,4345.3,4345.2,14.449947]
[1757105780883,0.001,4345.3,4345.2,8.01366855]
[1757105781084,0.001,4345.3,4345.2,3.62794342]
[1757105781270,0.001,4345.3,4345.2,5.92933345]
[1757105781794,0.001,4345.3,4345.2,3.62794342]
[1757105782001,0.001,4345.3,4345.2,5.92933345]
[1757105784175,0.001,4345.3,4345.2,6.22243345]
[1757105784484,0.001,4345.3,4345.2,5.92933345]
[1757105786275,0.001,4345.3,4345.2,3.62794342]
[1757105786475,0.001,4345.3,4345.2,5.92933345]
[1757105788093,0.4457,4345.3,4345.2,5.92933345]
[1757105788322,0.7599,4345.3,4345.2,5.92933345]
[1757105788625,0.4457,4345.3,4345.2,5.92933345]
[1757105789311,0.001,4345.3,4345.2,5.92933345]
[1757105793020,0.001,4345.3,4345.2,3.62794342]
[1757105793311,0.7599,4345.3,4345.2,3.62794342]
[1757105793518,0.7599,4345.3,4345.2,5.92933345]
[1757105793682,0.4457,4345.3,4345.2,5.92933345]
[1757105794692,0.4457,4345.3,4345.2,3.62794342]
[1757105795409,0.4457,4345.3,4345.2,5.92933345]
[1757105795611,0.001,4345.3,4345.2,3.62794342]
[1757105795922,0.001,4345.3,4345.2,5.92933345]
[1757105796930,0.001,4345.3,4345.2,3.62794342]
[1757105797499,0.001,4345.3,4345.2,5.92933345]
[1757105799138,0.001,4345.3,4345.2,3.62794342]
[1757105799636,1.2269,4345.3,4345.2,2.93614845]
[1757105799844,0.7634,4345.3,4345.2,2.93614845]
[1757105800009,1.2269,4345.3,4345.2,2.93614845]